[Event "Early-Titled-Tuesday-Blitz-February-27-2024"]
[Site "Chess.com"]
[Date "2024.02.27"]
[Round "4"]
[White "betta2004"]
[Black "Rosh1610"]
[Result "1/2-1/2"]
[WhiteElo "2578"]
[BlackElo "2420"]
[TimeControl "180+1"]
[EndTime "8:38:10 PST"]
[Termination "Game drawn by repetition"]

1. d4 {[%clk 0:02:57.6]} 1... Nf6 {[%clk 0:02:48]} 2. f3 {[%clk 0:02:56.1]} 2...
d5 {[%clk 0:02:47.4]} 3. e4 {[%clk 0:02:55.5]} 3... dxe4 {[%clk 0:02:47.3]} 4.
Nc3 {[%clk 0:02:54.3]} 4... Bf5 {[%clk 0:02:45.3]} 5. g4 {[%clk 0:02:48.7]} 5...
Bg6 {[%clk 0:02:34.5]} 6. g5 {[%clk 0:02:46.4]} 6... Nd5 {[%clk 0:02:34]} 7.
Nxe4 {[%clk 0:02:46.3]} 7... e6 {[%clk 0:02:30.6]} 8. c4 {[%clk 0:02:45.7]} 8...
Bb4+ {[%clk 0:02:29.3]} 9. Kf2 {[%clk 0:02:45.5]} 9... Ne7 {[%clk 0:02:16.4]}
10. a3 {[%clk 0:02:43]} 10... Bxe4 {[%clk 0:02:15.6]} 11. fxe4 {[%clk
0:02:41.3]} 11... Bd6 {[%clk 0:02:10.2]} 12. c5 {[%clk 0:02:37.8]} 12... Bxc5
{[%clk 0:02:09.9]} 13. Qa4+ {[%clk 0:02:37.8]} 13... Nd7 {[%clk 0:01:50.9]} 14.
dxc5 {[%clk 0:02:37.3]} 14... O-O {[%clk 0:01:50.9]} 15. Bf4 {[%clk 0:02:34.1]}
15... Nxc5 {[%clk 0:01:48.9]} 16. Qc2 {[%clk 0:02:34.7]} 16... Qd4+ {[%clk
0:01:46.8]} 17. Be3 {[%clk 0:02:34.2]} 17... Nxe4+ {[%clk 0:01:42.9]} 18. Kf3
{[%clk 0:02:34.2]} 18... Nxg5+ {[%clk 0:01:38.7]} 19. Bxg5 {[%clk 0:02:34.2]}
19... Qd5+ {[%clk 0:01:38.3]} 20. Qe4 {[%clk 0:02:25.2]} 20... Qxg5 {[%clk
0:01:36.7]} 21. Bd3 {[%clk 0:02:22.4]} 21... Ng6 {[%clk 0:01:35.5]} 22. Kf2
{[%clk 0:02:20]} 22... Qf6+ {[%clk 0:01:33.8]} 23. Nf3 {[%clk 0:02:19]} 23...
Qxb2+ {[%clk 0:01:34.7]} 24. Kg3 {[%clk 0:02:17.9]} 24... b6 {[%clk 0:01:26.4]}
25. h4 {[%clk 0:02:17.3]} 25... h5 {[%clk 0:01:25.4]} 26. Raf1 {[%clk
0:02:00.7]} 26... Rad8 {[%clk 0:01:21.8]} 27. Bb1 {[%clk 0:01:54]} 27... Qxa3
{[%clk 0:01:19.9]} 28. Rhg1 {[%clk 0:01:50.6]} 28... Qd6+ {[%clk 0:01:08.6]} 29.
Kg2 {[%clk 0:01:50.5]} 29... f5 {[%clk 0:01:08.6]} 30. Qc4 {[%clk 0:01:47.3]}
30... Ne5 {[%clk 0:01:04.7]} 31. Nxe5 {[%clk 0:01:42.4]} 31... Qxe5 {[%clk
0:01:05.6]} 32. Re1 {[%clk 0:01:38.3]} 32... Rd2+ {[%clk 0:01:03.7]} 33. Kf3
{[%clk 0:01:38.6]} 33... Qd5+ {[%clk 0:00:55.5]} 34. Qxd5 {[%clk 0:01:37.5]}
34... exd5 {[%clk 0:00:56.4]} 35. Re7 {[%clk 0:01:36.6]} 35... Rf7 {[%clk
0:00:54.5]} 36. Re8+ {[%clk 0:01:35.8]} 36... Kh7 {[%clk 0:00:54.3]} 37. Rg5
{[%clk 0:01:35.4]} 37... g6 {[%clk 0:00:53.6]} 38. Re6 {[%clk 0:01:35.6]} 38...
Rd1 {[%clk 0:00:44.2]} 39. Bc2 {[%clk 0:01:25.8]} 39... Rd2 {[%clk 0:00:33.2]}
40. Bb1 {[%clk 0:01:25.3]} 40... c5 {[%clk 0:00:22.2]} 41. Rexg6 {[%clk
0:01:14.7]} 41... Rb2 {[%clk 0:00:19.1]} 42. Bd3 {[%clk 0:01:00]} 42... Rb3
{[%clk 0:00:18.4]} 43. Ke2 {[%clk 0:00:58.3]} 43... c4 {[%clk 0:00:17.6]} 44.
Bc2 {[%clk 0:00:58.1]} 44... Rb2 {[%clk 0:00:17.5]} 45. Kd1 {[%clk 0:00:58.5]}
45... d4 {[%clk 0:00:16.8]} 46. Bxf5 {[%clk 0:00:53.2]} 46... Rxf5 {[%clk
0:00:16.4]} 47. Rg7+ {[%clk 0:00:53.4]} 47... Kh8 {[%clk 0:00:16.6]} 48. Rg8+
{[%clk 0:00:53.9]} 48... Kh7 {[%clk 0:00:16.9]} 49. R5g7+ {[%clk 0:00:51.2]}
49... Kh6 {[%clk 0:00:17]} 50. Rg6+ {[%clk 0:00:52.1]} 50... Kh7 {[%clk
0:00:17.4]} 51. R8g7+ {[%clk 0:00:47.9]} 51... Kh8 {[%clk 0:00:16.9]} 52. Rg8+
{[%clk 0:00:48.8]} 52... Kh7 {[%clk 0:00:17.1]} 53. R8g7+ {[%clk 0:00:49.7]}
53... Kh8 {[%clk 0:00:17.1]} 54. Rg8+ {[%clk 0:00:50.6]} 54... Kh7 {[%clk
0:00:17.6]} 1/2-1/2

[Event "Early-Titled-Tuesday-Blitz-February-27-2024"]
[Site "Chess.com"]
[Date "2024.02.27"]
[Round "4"]
[White "hurricane7791"]
[Black "EsmeraldasAnderson03"]
[Result "1-0"]
[WhiteElo "2724"]
[BlackElo "2494"]
[TimeControl "180+1"]
[EndTime "8:38:11 PST"]
[Termination "hurricane7791 won by resignation"]

1. d4 {[%clk 0:03:00.9]} 1... d5 {[%clk 0:02:55.5]} 2. c4 {[%clk 0:03:00.6]}
2... dxc4 {[%clk 0:02:54.4]} 3. Nf3 {[%clk 0:02:59.5]} 3... Nf6 {[%clk
0:02:54.8]} 4. e3 {[%clk 0:03:00.1]} 4... a6 {[%clk 0:02:55.1]} 5. Bxc4 {[%clk
0:03:00.4]} 5... e6 {[%clk 0:02:56]} 6. O-O {[%clk 0:03:00.2]} 6... c5 {[%clk
0:02:56]} 7. Qe2 {[%clk 0:03:00.6]} 7... b5 {[%clk 0:02:54.4]} 8. Bd3 {[%clk
0:02:59.9]} 8... c4 {[%clk 0:02:54.9]} 9. Bc2 {[%clk 0:02:59.8]} 9... Bb7 {[%clk
0:02:55.5]} 10. Rd1 {[%clk 0:02:59.4]} 10... Be7 {[%clk 0:02:54.1]} 11. e4
{[%clk 0:02:59.2]} 11... O-O {[%clk 0:02:54.3]} 12. Nbd2 {[%clk 0:02:59.8]}
12... Nc6 {[%clk 0:02:52.9]} 13. Nf1 {[%clk 0:02:59.7]} 13... Nb4 {[%clk
0:02:44.5]} 14. Bb1 {[%clk 0:02:59.7]} 14... Nd3 {[%clk 0:02:43.5]} 15. Ng3
{[%clk 0:02:59.8]} 15... Nxc1 {[%clk 0:02:41.1]} 16. Rxc1 {[%clk 0:03:00.7]}
16... Qb6 {[%clk 0:02:33.8]} 17. Rd1 {[%clk 0:02:52.3]} 17... Rad8 {[%clk
0:02:30.3]} 18. Bc2 {[%clk 0:02:51.5]} 18... Rfe8 {[%clk 0:02:23.3]} 19. h4
{[%clk 0:02:43.8]} 19... Nd7 {[%clk 0:02:02.9]} 20. h5 {[%clk 0:02:43.5]} 20...
Bd6 {[%clk 0:01:55.6]} 21. e5 {[%clk 0:02:40.9]} 21... Bf8 {[%clk 0:01:53.8]}
22. Ng5 {[%clk 0:02:05.5]} 22... f5 {[%clk 0:01:34.9]} 23. exf6 {[%clk
0:01:56.6]} 23... Nxf6 {[%clk 0:01:35.2]} 24. N3e4 {[%clk 0:01:57.3]} 24... Nxe4
{[%clk 0:01:30.5]} 25. Bxe4 {[%clk 0:01:56.5]} 25... h6 {[%clk 0:01:25]} 26.
Bxb7 {[%clk 0:01:41.7]} 26... Qxb7 {[%clk 0:01:23.2]} 27. Nf3 {[%clk 0:01:31.1]}
27... Rd5 {[%clk 0:01:18.2]} 28. Qe4 {[%clk 0:01:21.6]} 28... Qf7 {[%clk
0:01:16.7]} 29. g4 {[%clk 0:01:02.8]} 29... Bd6 {[%clk 0:00:50.5]} 30. Re1
{[%clk 0:01:01.9]} 30... Bf4 {[%clk 0:00:49.9]} 31. a4 {[%clk 0:00:53.6]} 31...
b4 {[%clk 0:00:49]} 32. Kg2 {[%clk 0:00:50.9]} 32... c3 {[%clk 0:00:39.7]} 33.
bxc3 {[%clk 0:00:50.6]} 33... bxc3 {[%clk 0:00:40.6]} 34. Re2 {[%clk 0:00:51.2]}
34... Rc8 {[%clk 0:00:40.2]} 35. Rb1 {[%clk 0:00:43.3]} 35... Kh8 {[%clk
0:00:38.2]} 36. Rb6 {[%clk 0:00:40.6]} 36... a5 {[%clk 0:00:27.3]} 37. Rxe6
{[%clk 0:00:37.1]} 37... c2 {[%clk 0:00:27]} 38. Rxc2 {[%clk 0:00:33.3]} 38...
Rdd8 {[%clk 0:00:20.7]} 39. Rxc8 {[%clk 0:00:31.6]} 39... Rxc8 {[%clk
0:00:21.6]} 40. Nh4 {[%clk 0:00:26.1]} 40... Bg5 {[%clk 0:00:19.8]} 41. Ng6+
{[%clk 0:00:26.2]} 41... Kg8 {[%clk 0:00:20.4]} 42. Re5 {[%clk 0:00:20.6]} 42...
Bf6 {[%clk 0:00:19.9]} 43. Rxa5 {[%clk 0:00:16.8]} 43... Re8 {[%clk 0:00:20.2]}
44. Ra8 {[%clk 0:00:16.7]} 44... Qf8 {[%clk 0:00:19.7]} 45. Rxe8 {[%clk
0:00:15.6]} 1-0

[Event "Early-Titled-Tuesday-Blitz-February-27-2024"]
[Site "Chess.com"]
[Date "2024.02.27"]
[Round "4"]
[White "Skatchkov_V"]
[Black "FredddieCroderg"]
[Result "1-0"]
[WhiteElo "2656"]
[BlackElo "2301"]
[TimeControl "180+1"]
[EndTime "8:38:11 PST"]
[Termination "Skatchkov_V won by checkmate"]

1. d4 {[%clk 0:01:55.4]} 1... d5 {[%clk 0:02:56.2]} 2. c4 {[%clk 0:01:53.3]}
2... e6 {[%clk 0:02:54.3]} 3. Nf3 {[%clk 0:01:52.8]} 3... Nf6 {[%clk 0:02:53.9]}
4. g3 {[%clk 0:01:52.5]} 4... dxc4 {[%clk 0:02:53.4]} 5. Bg2 {[%clk 0:01:52.4]}
5... a6 {[%clk 0:02:50.9]} 6. Ne5 {[%clk 0:01:47.8]} 6... Bb4+ {[%clk
0:02:48.9]} 7. Nc3 {[%clk 0:01:47.3]} 7... Nd5 {[%clk 0:02:44.1]} 8. O-O {[%clk
0:01:46.9]} 8... O-O {[%clk 0:02:42.1]} 9. Qc2 {[%clk 0:01:43.2]} 9... Nb6
{[%clk 0:02:37.9]} 10. Rd1 {[%clk 0:01:05.8]} 10... N8d7 {[%clk 0:02:36.2]} 11.
Bf4 {[%clk 0:00:38]} 11... g5 {[%clk 0:02:18.7]} 12. Be3 {[%clk 0:00:33.5]}
12... Nxe5 {[%clk 0:02:15.8]} 13. dxe5 {[%clk 0:00:33.6]} 13... Qe7 {[%clk
0:02:14.4]} 14. Ne4 {[%clk 0:00:33.8]} 14... f5 {[%clk 0:01:40.8]} 15. exf6
{[%clk 0:00:32.7]} 15... Qe8 {[%clk 0:01:30.1]} 16. Nxg5 {[%clk 0:00:26.4]}
16... Qh5 {[%clk 0:01:14.7]} 17. Bf3 {[%clk 0:00:22.6]} 17... Qg6 {[%clk
0:01:10.6]} 18. Be4 {[%clk 0:00:21.4]} 18... Qh5 {[%clk 0:01:10.3]} 19. f7+
{[%clk 0:00:17.2]} 19... Rxf7 {[%clk 0:01:04.1]} 20. Nxf7 {[%clk 0:00:16.7]}
20... Qxf7 {[%clk 0:01:03.9]} 21. Rd8+ {[%clk 0:00:16.3]} 21... Kg7 {[%clk
0:01:02.2]} 22. Bxb6 {[%clk 0:00:09.7]} 22... cxb6 {[%clk 0:01:00.3]} 23. Bxh7
{[%clk 0:00:07.6]} 23... Bc5 {[%clk 0:00:54.3]} 24. e3 {[%clk 0:00:07.8]} 24...
Kh6 {[%clk 0:00:49.8]} 25. Be4 {[%clk 0:00:07.2]} 25... Qg7 {[%clk 0:00:36.5]}
26. Rad1 {[%clk 0:00:07.1]} 26... b5 {[%clk 0:00:34]} 27. Qc3 {[%clk 0:00:06.2]}
27... Qxc3 {[%clk 0:00:28.4]} 28. bxc3 {[%clk 0:00:06.2]} 28... a5 {[%clk
0:00:28.1]} 29. Rg8 {[%clk 0:00:03.2]} 29... b4 {[%clk 0:00:23.9]} 30. Rg6+
{[%clk 0:00:03.3]} 30... Kh7 {[%clk 0:00:19.9]} 31. Rg5+ {[%clk 0:00:03.7]}
31... Kh8 {[%clk 0:00:18]} 32. Rd8+ {[%clk 0:00:02.8]} 32... Bf8 {[%clk
0:00:11.3]} 33. Rxf8# {[%clk 0:00:03.7]} 1-0

[Event "Early-Titled-Tuesday-Blitz-February-27-2024"]
[Site "Chess.com"]
[Date "2024.02.27"]
[Round "4"]
[White "Mesa_1"]
[Black "salomez"]
[Result "0-1"]
[WhiteElo "2504"]
[BlackElo "2332"]
[TimeControl "180+1"]
[EndTime "8:38:11 PST"]
[Termination "salomez won by resignation"]

1. e4 {[%clk 0:03:00.9]} 1... c5 {[%clk 0:02:57.3]} 2. Nf3 {[%clk 0:03:01.2]}
2... e6 {[%clk 0:02:56.8]} 3. d4 {[%clk 0:02:57.4]} 3... cxd4 {[%clk 0:02:56.5]}
4. Nxd4 {[%clk 0:02:58.3]} 4... Nf6 {[%clk 0:02:56.8]} 5. Nc3 {[%clk 0:02:57]}
5... Nc6 {[%clk 0:02:56]} 6. Ndb5 {[%clk 0:02:57.2]} 6... d6 {[%clk 0:02:55.9]}
7. Bf4 {[%clk 0:02:56.7]} 7... e5 {[%clk 0:02:56.2]} 8. Bg5 {[%clk 0:02:57.4]}
8... a6 {[%clk 0:02:56.2]} 9. Na3 {[%clk 0:02:58.1]} 9... b5 {[%clk 0:02:56.5]}
10. Nd5 {[%clk 0:02:56.2]} 10... Be7 {[%clk 0:02:56.2]} 11. Bxf6 {[%clk
0:02:45.7]} 11... Bxf6 {[%clk 0:02:56.3]} 12. Nb1 {[%clk 0:02:46.3]} 12... O-O
{[%clk 0:02:47.4]} 13. a4 {[%clk 0:02:46.9]} 13... Rb8 {[%clk 0:02:46.4]} 14.
axb5 {[%clk 0:02:41.8]} 14... axb5 {[%clk 0:02:47.3]} 15. Bd3 {[%clk 0:02:26]}
15... Be6 {[%clk 0:02:45.9]} 16. O-O {[%clk 0:02:26.6]} 16... Bxd5 {[%clk
0:02:45.1]} 17. exd5 {[%clk 0:02:27.5]} 17... Ne7 {[%clk 0:02:41.6]} 18. Nc3
{[%clk 0:02:25.3]} 18... b4 {[%clk 0:02:41.4]} 19. Ne4 {[%clk 0:02:25.2]} 19...
Nxd5 {[%clk 0:02:35.1]} 20. Bc4 {[%clk 0:02:15.5]} 20... Nb6 {[%clk 0:02:32.2]}
21. Nxd6 {[%clk 0:02:15.5]} 21... Be7 {[%clk 0:02:25.6]} 22. Bxf7+ {[%clk
0:01:57.6]} 22... Kh8 {[%clk 0:02:06.8]} 23. Nc4 {[%clk 0:01:18.5]} 23... Rxf7
{[%clk 0:02:01.3]} 24. Nxe5 {[%clk 0:01:16.4]} 24... Rf6 {[%clk 0:01:51.8]} 25.
Ra7 {[%clk 0:01:10.8]} 25... Qxd1 {[%clk 0:01:45.2]} 26. Rxd1 {[%clk 0:01:09.7]}
26... Bc5 {[%clk 0:01:43.9]} 27. Ng4 {[%clk 0:00:54.3]} 27... Rd6 {[%clk
0:00:46.4]} 28. Re1 {[%clk 0:00:43.9]} 28... Nd7 {[%clk 0:00:23.3]} 29. Rc7
{[%clk 0:00:36.3]} 29... h5 {[%clk 0:00:22.6]} 30. Ne3 {[%clk 0:00:27.3]} 30...
Re8 {[%clk 0:00:13]} 31. h4 {[%clk 0:00:21]} 31... Rd2 {[%clk 0:00:12.1]} 32.
Kf1 {[%clk 0:00:12.9]} 32... Rf8 {[%clk 0:00:10.9]} 33. Rxd7 {[%clk 0:00:06.9]}
33... Rxd7 {[%clk 0:00:10.1]} 0-1

[Event "Early-Titled-Tuesday-Blitz-February-27-2024"]
[Site "Chess.com"]
[Date "2024.02.27"]
[Round "4"]
[White "GMAkobianSTL"]
[Black "MITerryble"]
[Result "1-0"]
[WhiteElo "2819"]
[BlackElo "3019"]
[TimeControl "180+1"]
[EndTime "8:38:12 PST"]
[Termination "GMAkobianSTL won by resignation"]

1. d4 {[%clk 0:03:00.9]} 1... d5 {[%clk 0:03:00.3]} 2. c4 {[%clk 0:03:00.6]}
2... dxc4 {[%clk 0:03:01.2]} 3. e3 {[%clk 0:03:00.4]} 3... Nf6 {[%clk
0:03:01.6]} 4. Bxc4 {[%clk 0:03:00.2]} 4... e6 {[%clk 0:03:02.3]} 5. Nf3 {[%clk
0:03:00.1]} 5... a6 {[%clk 0:03:02.9]} 6. O-O {[%clk 0:02:59.9]} 6... c5 {[%clk
0:03:03.6]} 7. b3 {[%clk 0:02:59.3]} 7... b5 {[%clk 0:03:02.6]} 8. Be2 {[%clk
0:02:59.2]} 8... Bb7 {[%clk 0:03:02.1]} 9. Bb2 {[%clk 0:02:58.9]} 9... Nbd7
{[%clk 0:03:01.6]} 10. Nbd2 {[%clk 0:02:58.8]} 10... Be7 {[%clk 0:03:01.5]} 11.
a4 {[%clk 0:02:58.3]} 11... bxa4 {[%clk 0:03:01.7]} 12. Rxa4 {[%clk 0:02:57.9]}
12... O-O {[%clk 0:03:01.8]} 13. Qa1 {[%clk 0:02:56.8]} 13... cxd4 {[%clk
0:02:57.6]} 14. Bxd4 {[%clk 0:02:56.2]} 14... Nc5 {[%clk 0:02:42.2]} 15. Bxc5
{[%clk 0:02:55]} 15... Bxc5 {[%clk 0:02:43.1]} 16. Bxa6 {[%clk 0:02:54.5]} 16...
Bc6 {[%clk 0:02:43.1]} 17. Ra2 {[%clk 0:02:54.1]} 17... Nd5 {[%clk 0:02:33.2]}
18. Bc4 {[%clk 0:02:47.8]} 18... Rxa2 {[%clk 0:02:17.5]} 19. Qxa2 {[%clk
0:02:46.5]} 19... Nb4 {[%clk 0:02:16.3]} 20. Qb1 {[%clk 0:02:43]} 20... h6
{[%clk 0:01:59.6]} 21. Rc1 {[%clk 0:02:31.2]} 21... Be7 {[%clk 0:01:53.9]} 22.
h3 {[%clk 0:02:30.4]} 22... Qa8 {[%clk 0:01:47.3]} 23. Bf1 {[%clk 0:02:28.7]}
23... Rd8 {[%clk 0:01:46.8]} 24. Nd4 {[%clk 0:02:23.3]} 24... Bb7 {[%clk
0:01:44.2]} 25. Nc4 {[%clk 0:02:17.3]} 25... Bf6 {[%clk 0:01:39.7]} 26. Rd1
{[%clk 0:02:06.8]} 26... Be4 {[%clk 0:01:33.3]} 27. Qc1 {[%clk 0:02:03.7]} 27...
Qa2 {[%clk 0:01:16.2]} 28. Rd2 {[%clk 0:01:56]} 28... Qa8 {[%clk 0:01:11.8]} 29.
Qd1 {[%clk 0:01:54.3]} 29... Nd5 {[%clk 0:01:06.7]} 30. Ne2 {[%clk 0:01:32.5]}
30... Rb8 {[%clk 0:01:04]} 31. Ng3 {[%clk 0:01:28]} 31... Bg6 {[%clk 0:01:02.6]}
32. Bd3 {[%clk 0:01:23.6]} 32... Nc3 {[%clk 0:01:02.6]} 33. Qc2 {[%clk
0:01:22.2]} 33... Bxd3 {[%clk 0:00:53.9]} 34. Rxd3 {[%clk 0:01:22.2]} 34... Nd5
{[%clk 0:00:51.8]} 35. Rd1 {[%clk 0:01:14]} 35... Qb7 {[%clk 0:00:51.5]} 36. Nd2
{[%clk 0:01:09.6]} 36... Nc3 {[%clk 0:00:50.5]} 37. Rf1 {[%clk 0:01:04.6]} 37...
Rc8 {[%clk 0:00:48.2]} 38. Nc4 {[%clk 0:01:03.1]} 38... Qc6 {[%clk 0:00:37.9]}
39. Ne2 {[%clk 0:00:58.9]} 39... Nd5 {[%clk 0:00:35.6]} 40. Rd1 {[%clk
0:00:56.3]} 40... Rb8 {[%clk 0:00:34.9]} 41. e4 {[%clk 0:00:48.6]} 41... Nb4
{[%clk 0:00:28.2]} 42. Qb1 {[%clk 0:00:48.6]} 42... Be7 {[%clk 0:00:28.3]} 43.
Nd4 {[%clk 0:00:46.5]} 43... Qa8 {[%clk 0:00:24.5]} 44. Nf3 {[%clk 0:00:45.3]}
44... Nc6 {[%clk 0:00:24.1]} 45. Nfe5 {[%clk 0:00:43.8]} 45... Nb4 {[%clk
0:00:20.9]} 46. Rd7 {[%clk 0:00:43]} 46... Re8 {[%clk 0:00:19.3]} 47. Qd1 {[%clk
0:00:42.1]} 47... Qc8 {[%clk 0:00:19.2]} 48. Qh5 {[%clk 0:00:41]} 48... g6
{[%clk 0:00:16.1]} 49. Qf3 {[%clk 0:00:40.9]} 49... f6 {[%clk 0:00:14.9]} 50.
Qg4 {[%clk 0:00:41.1]} 50... fxe5 {[%clk 0:00:11.1]} 51. Qxg6+ {[%clk
0:00:39.7]} 51... Kh8 {[%clk 0:00:11.1]} 52. Qxh6+ {[%clk 0:00:39.7]} 52... Kg8
{[%clk 0:00:11.7]} 53. Nxe5 {[%clk 0:00:39.4]} 53... Qc1+ {[%clk 0:00:05.6]} 54.
Qxc1 {[%clk 0:00:38.6]} 1-0

[Event "Early-Titled-Tuesday-Blitz-February-27-2024"]
[Site "Chess.com"]
[Date "2024.02.27"]
[Round "4"]
[White "IMRosen"]
[Black "Misterfox120"]
[Result "1-0"]
[WhiteElo "2704"]
[BlackElo "2443"]
[TimeControl "180+1"]
[EndTime "8:38:12 PST"]
[Termination "IMRosen won by resignation"]

1. d4 {[%clk 0:03:00]} 1... d5 {[%clk 0:02:58.9]} 2. Bf4 {[%clk 0:02:59.9]} 2...
c5 {[%clk 0:02:59.3]} 3. Nc3 {[%clk 0:03:00.1]} 3... Nc6 {[%clk 0:02:58.2]} 4.
e4 {[%clk 0:02:57]} 4... cxd4 {[%clk 0:02:56.4]} 5. exd5 {[%clk 0:02:57.3]} 5...
dxc3 {[%clk 0:02:50.4]} 6. dxc6 {[%clk 0:02:57.7]} 6... Qxd1+ {[%clk 0:02:45.6]}
7. Rxd1 {[%clk 0:02:57.5]} 7... bxc6 {[%clk 0:02:46.1]} 8. Bc7 {[%clk
0:02:50.4]} 8... Bf5 {[%clk 0:02:13.6]} 9. Ba6 {[%clk 0:02:46.3]} 9... Bxc2
{[%clk 0:00:27.7]} 10. Bb7 {[%clk 0:02:42.8]} 10... f6 {[%clk 0:00:23.8]} 11.
bxc3 {[%clk 0:01:56.5]} 11... Bxd1 {[%clk 0:00:23.2]} 12. Bxc6+ {[%clk 0:01:44]}
12... Kf7 {[%clk 0:00:21.6]} 13. Bxa8 {[%clk 0:01:44.5]} 13... Bg4 {[%clk
0:00:16.6]} 14. Bb8 {[%clk 0:01:32.1]} 14... e6 {[%clk 0:00:07.3]} 15. Bxa7
{[%clk 0:01:29.5]} 15... Bd6 {[%clk 0:00:07.7]} 16. Be4 {[%clk 0:01:20.7]} 16...
Ne7 {[%clk 0:00:06.9]} 17. Ne2 {[%clk 0:01:15.1]} 17... Bf5 {[%clk 0:00:05.8]}
18. Bf3 {[%clk 0:01:09.1]} 18... Nd5 {[%clk 0:00:05.5]} 19. c4 {[%clk
0:01:03.8]} 19... Bb4+ {[%clk 0:00:04.3]} 20. Kf1 {[%clk 0:01:03.6]} 20... Nc3
{[%clk 0:00:03.1]} 21. Nxc3 {[%clk 0:00:58]} 21... Bxc3 {[%clk 0:00:04]} 22. Ke2
{[%clk 0:00:58.7]} 22... Rc8 {[%clk 0:00:02.9]} 23. c5 {[%clk 0:00:55.7]} 23...
Bb4 {[%clk 0:00:01.4]} 24. Rc1 {[%clk 0:00:56]} 24... Ba3 {[%clk 0:00:01.9]} 25.
Rc3 {[%clk 0:00:54.1]} 25... Bb4 {[%clk 0:00:01.6]} 26. Rc4 {[%clk 0:00:54.6]}
26... Ba3 {[%clk 0:00:02]} 27. Bb7 {[%clk 0:00:47.3]} 27... Rc7 {[%clk
0:00:01.9]} 28. c6 {[%clk 0:00:48]} 28... e5 {[%clk 0:00:01.6]} 29. Bb8 {[%clk
0:00:43.2]} 29... Be6 {[%clk 0:00:01.9]} 30. Ra4 {[%clk 0:00:35.4]} 30... Bd6
{[%clk 0:00:01.4]} 31. Bxc7 {[%clk 0:00:32.4]} 31... Bxc7 {[%clk 0:00:02.3]} 32.
Bc8 {[%clk 0:00:28.1]} 32... Bxc8 {[%clk 0:00:01.9]} 33. Ra7 {[%clk 0:00:28.7]}
33... Ke6 {[%clk 0:00:02.3]} 34. Rxc7 {[%clk 0:00:29]} 34... Ba6+ {[%clk
0:00:03]} 35. Ke3 {[%clk 0:00:28.2]} 35... g6 {[%clk 0:00:03.3]} 36. Rxh7 {[%clk
0:00:28]} 36... Kd6 {[%clk 0:00:03.6]} 37. c7 {[%clk 0:00:28.3]} 37... g5 {[%clk
0:00:04.2]} 38. g4 {[%clk 0:00:27.4]} 38... Bb7 {[%clk 0:00:04]} 39. f3 {[%clk
0:00:27.2]} 39... Ke6 {[%clk 0:00:04.2]} 40. a4 {[%clk 0:00:27.4]} 40... Kd6
{[%clk 0:00:04.4]} 41. a5 {[%clk 0:00:27.8]} 41... Ba6 {[%clk 0:00:04.9]} 42.
Rf7 {[%clk 0:00:27.3]} 42... Ke6 {[%clk 0:00:04.7]} 43. Rg7 {[%clk 0:00:26.5]}
43... Kd6 {[%clk 0:00:04.9]} 44. Kd2 {[%clk 0:00:26.1]} 44... Ke6 {[%clk
0:00:05.2]} 45. Kc3 {[%clk 0:00:26.6]} 45... Kd6 {[%clk 0:00:05.7]} 46. Kb4
{[%clk 0:00:27.2]} 46... Bb7 {[%clk 0:00:06]} 47. Kb5 {[%clk 0:00:27.1]} 1-0

[Event "Early-Titled-Tuesday-Blitz-February-27-2024"]
[Site "Chess.com"]
[Date "2024.02.27"]
[Round "4"]
[White "Hikaru"]
[Black "scarabee43"]
[Result "1-0"]
[WhiteElo "3245"]
[BlackElo "2881"]
[TimeControl "180+1"]
[EndTime "8:38:13 PST"]
[Termination "Hikaru won by resignation"]

1. h3 {[%clk 0:03:00.6]} 1... d5 {[%clk 0:02:59.2]} 2. d4 {[%clk 0:02:58.3]}
2... Nf6 {[%clk 0:02:58.6]} 3. Bf4 {[%clk 0:02:57.6]} 3... Bf5 {[%clk
0:02:55.6]} 4. e3 {[%clk 0:02:53.5]} 4... e6 {[%clk 0:02:55.1]} 5. c4 {[%clk
0:02:52.2]} 5... c6 {[%clk 0:02:55.1]} 6. Nc3 {[%clk 0:02:51.4]} 6... Nbd7
{[%clk 0:02:54.7]} 7. Qb3 {[%clk 0:02:51.7]} 7... Qc8 {[%clk 0:02:41.6]} 8. Rc1
{[%clk 0:02:50.4]} 8... Be7 {[%clk 0:02:36.6]} 9. cxd5 {[%clk 0:02:41.8]} 9...
exd5 {[%clk 0:02:36.3]} 10. g4 {[%clk 0:02:41.9]} 10... Be6 {[%clk 0:02:35.8]}
11. Bd3 {[%clk 0:02:33.5]} 11... O-O {[%clk 0:02:31.1]} 12. Qc2 {[%clk
0:02:26.8]} 12... h6 {[%clk 0:02:23.5]} 13. Nf3 {[%clk 0:02:22.2]} 13... Re8
{[%clk 0:02:10.7]} 14. Rg1 {[%clk 0:02:05.4]} 14... Nf8 {[%clk 0:02:08.6]} 15.
g5 {[%clk 0:02:04.1]} 15... hxg5 {[%clk 0:02:07]} 16. Nxg5 {[%clk 0:02:03.8]}
16... Nh5 {[%clk 0:02:01]} 17. Ne2 {[%clk 0:01:57]} 17... Nxf4 {[%clk 0:01:54]}
18. Nxf4 {[%clk 0:01:57.9]} 18... Bxg5 {[%clk 0:01:53.3]} 19. Rxg5 {[%clk
0:01:58]} 19... Qd8 {[%clk 0:01:38.2]} 20. h4 {[%clk 0:01:49]} 20... Bd7 {[%clk
0:01:33.1]} 21. Kd2 {[%clk 0:01:40.8]} 21... Qf6 {[%clk 0:01:23.3]} 22. Rcg1
{[%clk 0:01:09.7]} 22... Ne6 {[%clk 0:01:12]} 23. Nxe6 {[%clk 0:01:06.5]} 23...
Qxf2+ {[%clk 0:01:08.8]} 24. Kc3 {[%clk 0:01:06.4]} 24... Qxc2+ {[%clk
0:01:06.8]} 25. Kxc2 {[%clk 0:01:07.3]} 25... Bxe6 {[%clk 0:01:05.6]} 26. Rxg7+
{[%clk 0:01:07.5]} 26... Kf8 {[%clk 0:01:06.3]} 27. h5 {[%clk 0:01:07.2]} 27...
Ke7 {[%clk 0:01:00.3]} 28. h6 {[%clk 0:01:07.2]} 28... Rh8 {[%clk 0:01:00.6]}
29. h7 {[%clk 0:01:07.6]} 29... Kd6 {[%clk 0:00:34.2]} 30. Rg8 {[%clk
0:00:48.1]} 30... f5 {[%clk 0:00:34.3]} 31. Rxa8 {[%clk 0:00:47.7]} 31... Rxa8
{[%clk 0:00:34.4]} 32. Rg7 {[%clk 0:00:47.7]} 32... b6 {[%clk 0:00:28.2]} 33.
Kd2 {[%clk 0:00:46.2]} 33... a5 {[%clk 0:00:27.4]} 34. Ke2 {[%clk 0:00:40.3]}
34... c5 {[%clk 0:00:26.3]} 35. a4 {[%clk 0:00:36.9]} 35... Rh8 {[%clk
0:00:17.8]} 36. Kf3 {[%clk 0:00:36.9]} 36... Rf8 {[%clk 0:00:17.4]} 37. Kf4
{[%clk 0:00:36.5]} 37... c4 {[%clk 0:00:15]} 38. Bc2 {[%clk 0:00:28.2]} 38...
Rh8 {[%clk 0:00:10.6]} 39. Kg5 {[%clk 0:00:26.9]} 39... Rf8 {[%clk 0:00:10.9]}
40. Rg6 {[%clk 0:00:23.3]} 40... Ke7 {[%clk 0:00:09.9]} 41. Rh6 {[%clk
0:00:23.7]} 41... Rh8 {[%clk 0:00:09.7]} 42. Bxf5 {[%clk 0:00:23.7]} 42... Bf7
{[%clk 0:00:10.2]} 43. Rxb6 {[%clk 0:00:23.4]} 43... Kf8 {[%clk 0:00:09.3]} 44.
Kh6 {[%clk 0:00:22.3]} 44... Be8 {[%clk 0:00:07.7]} 45. Rb8 {[%clk 0:00:20.5]}
45... Kf7 {[%clk 0:00:07.5]} 46. Bg6+ {[%clk 0:00:20.8]} 1-0